{"text_format":"1","workbook":"xlsx","n_sheets":2,"sheets":["Experiência","Plan1"],"not_rendered":{"charts":0,"images":0,"macros":1,"external_links":1,"defined_names":4,"comments":0,"pivot_tables":0},"unopened":[],"bounds":{"document_bytes":16777216,"sheet_cells":100000,"rows_first":2000,"rows_last":500,"rows_between":2000,"halvings":0,"cell_chars":16384,"cell_head_chars":4096},"cells_cut":0,"cells_raw":0,"read":"whole","date_system":"1900"}

{"sheet":"Experiência","index":0,"n_rows":37,"n_cols":14,"rows_kept":37,"cut":false,"hidden":false,"merged":[[0,2,0,4],[1,2,1,4],[8,0,8,10],[35,5,35,8],[9,3,9,5],[4,4,4,6]]}
[null,"NOME DO CANDIDATO:"]
[null,"CARGO CONCORRIDO:"]
[null,"DATA DE CONCLUSÃO DO CURSO DE GRADUAÇÃO:"]
[]
[null,"Diploma de curso de doutorado na área em que concorre, concluído até a data de publicação do edital. Também será aceito Certificado/declaração de conclusão de curso de doutorado na área a que concorre, desde que acompanhado de histórico escolar.",null,null,"Diploma de curso de mestrado (título de mestre) - Stricto Sensu na área a que concorre, concluído até a data de publicação do edital. Também será aceito certificado/declaração de conclusão de curso de Mestrado na área a que concorre, desde que  acompanhado de histórico escolar."]
[]
[null,"Diploma de curso de pós-graduação em nível de especialização (Lato Sensu), com carga horária mínima de 360 horas, na área a que concorre, concluído até a data de publicação do edital. Também será aceita a declaração de conclusão de pós-graduação em nível de especialização na área a que concorre, desde que acompanhada de histórico escolar."]
[]
[{"$f":"IF(COUNTIF(N11:N35,TRUE)>1,\"SOBREPOSIÇÃO DE TEMPO DE EXPERIÊNCIA! As datas destacadas em vermelho na lista abaixo estão sobrepostas.\",\"LISTAGEM DE EXPERIÊNCIAS\")","v":"LISTAGEM DE EXPERIÊNCIAS"}]
["#","Código do exercício da atividade","Empresa/Instituição","Comprovantes de atividade",null,null,"Data de início","Data de fim","Dias considerados","Meses considerados","Aceite",null,null,"Verificação da sobreposição de datas"]
[1,null,null,null,null,null,null,null,{"$f":"IFERROR(IF(OR(G11=\"\",H11=\"\"),\"\",H11-G11),\"\")","v":""},{"$f":"IFERROR(IF(I11=\"\",\"\",ROUNDDOWN(I11/30,0)),\"\")","v":""},{"$f":"IF(OR(AND($C$3=\"\",G11=\"\"),AND($C$3<>\"\",G11=\"\")),\"\",IF(AND($C$3=\"\",G11<>\"\"),\"Preencha o campo emissão do diploma\",IF($C$3>G11,\"ATENÇÃO: A experiência declarada não será aceita. A data de início é anterior à data de emissão do diploma de graduação\",IF(N11=TRUE,\"ATENÇÃO: Sobreposição de datas nas experiências declaradas\",IF(J11<0,\"ATENÇÃO: A data fim é anterior a data de início. Verifique as datas informadas.\",\"Experiência válida para análise da comissão\")))))","v":""},null,null,{"$f":"IF(AND(G11=\"\",H11=\"\"),\"\",SUMPRODUCT(((G11<=$H$11:$H$35)*(H11>=$G$11:$G$35)))>1)","v":""}]
[2,null,null,null,null,null,null,null,{"$f":"IFERROR(IF(OR(G12=\"\",H12=\"\"),\"\",H12-G12),\"\")","v":""},{"$f":"IFERROR(IF(I12=\"\",\"\",ROUNDDOWN(I12/30,0)),\"\")","v":""},{"$f":"IF(OR(AND($C$3=\"\",G12=\"\"),AND($C$3<>\"\",G12=\"\")),\"\",IF(AND($C$3=\"\",G12<>\"\"),\"Preencha o campo emissão do diploma\",IF($C$3>G12,\"ATENÇÃO: A experiência declarada não será aceita. A data de início é anterior à data de emissão do diploma de graduação\",IF(N12=TRUE,\"ATENÇÃO: Sobreposição de datas nas experiências declaradas\",IF(J12<0,\"ATENÇÃO: A data fim é anterior a data de início. Verifique as datas informadas.\",\"Experiência válida para análise da comissão\")))))","v":""},null,null,{"$f":"IF(AND(G12=\"\",H12=\"\"),\"\",SUMPRODUCT(((G12<=$H$11:$H$35)*(H12>=$G$11:$G$35)))>1)","v":""}]
[3,null,null,null,null,null,null,null,"","","",null,null,""]
[4,null,null,null,null,null,null,null,"","","",null,null,""]
[5,null,null,null,null,null,null,null,"","","",null,null,""]
[6,null,null,null,null,null,null,null,"","","",null,null,""]
[7,null,null,null,null,null,null,null,"","","",null,null,""]
[8,null,null,null,null,null,null,null,"","","",null,null,""]
[9,null,null,null,null,null,null,null,"","","",null,null,""]
[10,null,null,null,null,null,null,null,"","","",null,null,""]
[11,null,null,null,null,null,null,null,"","","",null,null,""]
[12,null,null,null,null,null,null,null,"","","",null,null,""]
[13,null,null,null,null,null,null,null,"","","",null,null,""]
[14,null,null,null,null,null,null,null,"","","",null,null,""]
[15,null,null,null,null,null,null,null,"","","",null,null,""]
[16,null,null,null,null,null,null,null,"","",{"$f":"IF(OR(AND($C$3=\"\",G26=\"\"),AND($C$3<>\"\",G26=\"\")),\"\",IF(AND($C$3=\"\",G26<>\"\"),\"Preencha o campo emissão do diploma\",IF($C$3>G26,\"ATENÇÃO: A experiência declarada não sera aceita. A data de início é anterior a data de emissão do diploma de graduação\",IF(N26=TRUE,\"ATENÇÃO: Sobreposição de datas nas experiências declaradas\",IF(J26<0,\"ATENÇÃO: A data fim é anterior a data de início. Verifique as datas informadas.\",\"Experiência válida para análise da comissão\")))))","v":""},null,null,""]
[17,null,null,null,null,null,null,null,"","","",null,null,""]
[18,null,null,null,null,null,null,null,"","","",null,null,""]
[19,null,null,null,null,null,null,null,"","","",null,null,""]
[20,null,null,null,null,null,null,null,"","","",null,null,""]
[21,null,null,null,null,null,null,null,"","","",null,null,""]
[22,null,null,null,null,null,null,null,"","","",null,null,""]
[23,null,null,null,null,null,null,null,"","","",null,null,""]
[24,null,null,null,null,null,null,null,"","","",null,null,""]
[25,null,null,null,null,null,null,null,"","","",null,null,""]
[null,null,null,null,null,"SOMATÓRIA DO TEMPO DE EXPERIÊNCIA (MESES):",null,null,null,{"$f":"SUMIFS(J11:J35,K11:K35,\"Experiência válida para análise da comissão\")","v":0},null,null,null,""]
[null,null,null,null,null,null,null,null,null,null,null,null,null,""]

{"sheet":"Plan1","index":1,"n_rows":25,"n_cols":6,"rows_kept":25,"cut":false,"hidden":true,"merged":[]}
["CODIGO_ATIVIDADE","AREA_ATUACAO","CONTAR TEMPO_DATA INICIAL","CONTAR TEMPO_DATA FINAL_PUBLICAÇÃO EDITAL","DATA_INICIO CONTAGEM EXP","DATA_FIM CONTAGEM EXP"]
["1 - Exercício de atividade em instituição pública","Área ambiental genérica.","2012-08-22","2022-07-01","2012-08-22","2022-07-01"]
["2 - Exercício de atividade em empresa/instituição privada","Área específica: experiência na área ambiental,\nincluindo elaboração ou análise de estudos ambientais para fins de licenciamento e controle ambiental."]
["3 - Exercício de atividade/serviços prestados como autônomo","Área não correlata ao cargo pleiteado."]
["4 - Exercício de atividade na qualidade de sócio/proprietário de empresa","Área não identificada."]
[]
[]
["CARGO"]
["01: ADARH - Formação Admitida: Engenharia Agronômica. Experiência mínima comprovada de 01 (um) ano na área ambiental, incluindo elaboração ou análise de estudos ambientais para fins de licenciamento e controle ambiental. Área: Meio Físico/Biótico","Anotação de Responsabilidade Técnica - ART acompanhada de declaração"]
["02: ADARH - Formação Admitida: Engenharia de Minas. Experiência mínima comprovada de 01 (um) ano na área ambiental, incluindo elaboração ou análise de estudos ambientais para fins de licenciamento e controle ambiental. Área: Meio Físico","Acervo Técnico - ARTs acompanhado da carteira de trabalho - CTPS"]
["03: ADARH - Formação Admitida: Engenharia Geológica ou Geologia. Experiência mínima comprovada de 01 (um) ano na área ambiental, sendo obrigatório ter experiência em elaboração ou análise de estudos ambientais para fins de licenciamento e controle ambiental. Área: Meio Físico","Atestado de Capacidade Técnica"]
["04: ADARH - Formação Admitida: Engenharia Mecânica. Experiência mínima comprovada de 01 (um) ano na área ambiental, sendo obrigatório ter experiência em elaboração ou análise de estudos ambientais para fins de licenciamento e controle ambiental. Área: Meio Físico","Atestado Técnico"]
["05: ADARH - Formação Admitida: Oceanografia. Experiência na área ambiental, incluindo elaboração ou análise de estudos ambientais para fins de licenciamento e controle ambiental. Experiência mínima comprovada de 01 (um) ano na área pleiteada. Área: Meio Físico","Certidão ou Declaração em papel timbrado do órgão público"]
["06: ADARH - Formação Admitida: Engenharia Ambiental. Experiência na área ambiental, incluindo elaboração ou análise de estudos ambientais para fins de licenciamento e controle ambiental. Experiência mínima comprovada de 01 (um) ano na área pleiteada. Área: Meio Físico","Contrato Administrativo de Trabalho Temporário (incluindo aditivos)"]
["07: ADARH - Formação Admitida: Engenharia Ambiental. Experiência na área ambiental, incluindo elaboração ou análise de estudos ambientais para fins de licenciamento e controle ambiental e/ou gestão de redes de monitoramento da qualidade do ar; licenciamento e /ou gestão de áreas contaminadas. Experiência mínima comprovada de 01 (um) ano na área pleiteada. Área: Meio Físico","Contrato de Prestação de Serviços "]
["08: ADARH - Formação Admitida: Engenharia Civil. Experiência na área ambiental, incluindo elaboração ou análise de estudos ambientais para fins de licenciamento e controle ambiental e/ou na área de obras civis. Experiência mínima comprovada de 01 (um) ano na área pleiteada. Área: Meio Físico","Contrato de Prestação de Serviços acompanhado da ART"]
["09: ADARH -  Formação Admitida: Engenharia Química. Experiência na área ambiental, incluindo elaboração ou análise de estudos ambientais para fins de licenciamento e controle ambiental. Experiência mínima comprovada de 01 (um) ano na área pleiteada. Área: Meio Físico","Contrato de Prestação de Serviços acompanhado de declaração"]
["10: ADARH - Formação Admitida: Engenharia Florestal. Experiência na área ambiental, incluindo elaboração ou análise de estudos ambientais para fins de licenciamento e controle ambiental. Experiência mínima comprovada de 01 (um) ano na área\npleiteada. Área: Meio Biótico","Contrato de Prestação de Serviços acompanhado do Contrato Social e da ART"]
["11: ADARH -  Formação Admitida: Engenharia Metalúrgica. Experiência mínima comprovada de 01 (um) ano na área ambiental, sendo obrigatório ter experiência em elaboração ou análise de estudos ambientais para fins de licenciamento e controle ambiental. Área: Meio Físico","Contrato de Trabalho"]
["12: ADARH - Formação Admitida: Biologia ou Zootecnia ou Medicina Veterinária. Experiência mínima comprovada de 01 (um) ano na área ambiental, sendo obrigatório ter experiência em elaboração ou análise de estudos ambientais para fins de licenciamento e controle ambiental, bem como em análise de estudos e projetos de avaliação e monitoramento de biodiversidade de Fauna Silvestre Terrestre na natureza e gestão de fauna silvestre terrestre. Área: Meio Biótico","Contrato de Trabalho acompanhado da ART"]
[null,"Contrato de Trabalho acompanhado de declaração"]
[null,"Declaração acompanhada da carteira de trabalho - CTPS"]
[null,"Perfil Profissiográfico Previdenciário - PPP acompanhado da carteira de trabalho - CTPS"]
["SIM","Recibo de pagamento autônomo - RPA acompanhado de declaração"]
["NÃO"]